Cogmind - Beta 10.2 @@@ ROGUE MODE // 2020.11.13 @ 11:36:47 // Halloween2020/ForbiddenLore Player: Boris Result: Destroyed by G-47 Trooper with Particle Gun Performance ------------- Evolutions (0) 0 Regions Visited (2) 400 Robots Destroyed (28) 140 Value Destroyed (631) 631 Prototype IDs (2) 40 Alien Tech Used (0) 0 Bonus (0) 0 TOTAL SCORE: 1211 Bonus ------- None Cogmind --------- Core Integrity 0/250 Matter 300/300 Energy 100/100 System Corruption 0% Temperature Cool (9) Movement Treading (180) Ox1 Location -10/Mines Parts ------- > --- POWER (1) -------- (None) > --- PROPULSION (2) --- Light Treads > --- UTILITY (2) ------ Large Storage Unit Large Storage Unit > --- WEAPON (2) ------- Hammer > --- INVENTORY (16) --- Light Nuclear Core Light Treads Light Treads Light Treads Hacking Suite Hacking Suite Particle Gun Assault Rifle Light Assault Rifle Light Assault Rifle Light Assault Rifle Grenade Launcher Datajack Peak State ------------ > --- POWER ------------ Light Ion Engine > --- PROPULSION ------- Aluminum Leg Aluminum Leg > --- UTILITY ---------- Large Storage Unit Large Storage Unit > --- WEAPON ----------- Small Laser Light Cannon > --- INVENTORY -------- Light Nuclear Core Light Treads Light Treads Hacking Suite Hacking Suite EM Pulse Gun Medium Laser Particle Gun Assault Rifle Light Assault Rifle Light Assault Rifle Grenade Launcher Datajack Mining Laser [Rating: 9] Favorites ----------- Power Light Ion Engine Engine Light Ion Engine Propulsion Aluminum Leg Treads Light Treads Leg Aluminum Leg Wheel Wheel Utility Small Storage Unit Storage Small Storage Unit Weapon Small Laser Energy Gun Small Laser Ballistic Gun Assault Rifle Ballistic Cannon Light Cannon Launcher Grenade Launcher Special Weapon Mining Laser Impact Weapon Hammer Build | -11 -10 -10 ------- Run | Scr Mat Min Slots Evolved . | . . . Power . | . . . Propulsion . | . . . Utility . | . . . Weapon . | . . . Parts Attached 39 | 9 27 3 Power 3 | 1 2 . Engine 3 | 1 2 . Core . | . . . Reactor . | . . . Propulsion 9 | 4 4 1 Treads 2 | 1 . 1 Leg 6 | 2 4 . Wheel 1 | 1 . . Hover . | . . . Flight . | . . . Utility 8 | 2 6 . Device . | . . . Storage 8 | 2 6 . Processor . | . . . Hackware . | . . . Protection . | . . . Artifact . | . . . Weapon 19 | 2 15 2 Energy Gun 9 | 1 7 1 Energy Cannon . | . . . Ballistic Gun 3 | 1 2 . Ballistic Cannon 3 | . 3 . Launcher 1 | . 1 . Special Weapon 2 | . 2 . Impact Weapon 1 | . . 1 Slashing Weapon . | . . . Piercing Weapon . | . . . Special Melee Weapon . | . . . Unidentified Prototypes . | . . . Parts Lost 8 | . 2 6 Power 1 | . . 1 Propulsion 3 | . 1 2 Utility . | . . . Weapon 4 | . 1 3 Highest Loss Streak 3 | . 1 3 Average Slot Usage (%) 93 | . 95 70 Engine 13 | . 14 8 Leg 23 | . 24 13 Storage 28 | . 28 28 Energy Gun 13 | . 13 8 Ballistic Gun 2 | . 2 . Ballistic Cannon 10 | . 11 1 Naked Turns . | . . . Heaviest Build 40 | 16 40 40 Greatest Support 20 | 20 20 20 Greatest Overweight (x) 3 | 1 3 3 Average Overweight (x) . | . . 2 Largest Inventory Capacity 16 | 8 16 16 Average Capacity 11 | 7 11 16 Most Carried 16 | 6 16 16 Average Carried 10 | 3 10 14 Final Capacity 16 | 8 16 16 Final Carried 16 | 5 16 13 Class Distribution -------------------- 100% | Mutant Dominant Class ---------------- Mutant | -10/Materials Mutant | -10/Mines Resources | -11 -10 -10 ----------- Run | Scr Mat Min Matter Collected 805 | 309 465 31 Remotely . | . . . Salvage Created 750 | 103 587 60 Parts 55 | 6 44 5 Haulers Intercepted 2 | . 2 . Recyclers Shooed . | . . . Parts Field Recycled . | . . . Retrieved Matter . | . . . Parts Self-Destructed . | . . . Prevented . | . . . Kills | -11 -10 -10 ------- Run | Scr Mat Min Combat Hostiles Destroyed 20 | . 17 3 Melee 1 | . . 1 Guns 4 | . 2 2 Cannons 13 | . 13 . AOE 2 | . 2 . Classes Destroyed 6 | 2 4 . Worker 3 | 2 1 . Hauler 2 | . 2 . Recycler 1 | 1 . . Operator 2 | . 2 . Swarmer 5 | . 3 2 Grunt 15 | . 14 1 Best Kill Streak 4 | 2 4 2 Combat Bots Only 4 | . 4 2 Max Kills in Single Turn 2 | 1 2 1 Gunslinging . | . . . Exploded 2 | . 2 . Melee 1 | . . 1 Uniques/NPCs Destroyed . | . . . Combat | -11 -10 -10 -------- Run | Scr Mat Min Damage Taken 1126 | . 494 632 Core 251 | . 48 203 Absorbed by Shields . | . . . Core Remaining (%) 100 | 100 . . Volleys Fired 85 | 7 54 24 Largest 2 | 2 2 2 Hottest 100 | 60 100 85 Shots Fired 141 | 14 99 28 Gun 86 | 14 48 24 Cannon 52 | . 48 4 Launcher 1 | . 1 . Special 2 | . 2 . Kinetic 60 | 7 49 4 Thermal 64 | 7 49 8 Explosive 1 | . 1 . Electromagnetic 16 | . . 16 Robot Hit Streak 8 | 4 8 5 Robot Miss Streak 4 | 1 4 3 Penetration Max . | . . . Secondary Targets . | . . . Shots Hit Robots 92 | 9 57 26 Core Hits 40 | 4 30 6 Critical Hits 2 | . 2 . Critical Kills 1 | . 1 . Critical Parts Destroyed 1 | . 1 . Melee Attacks 10 | . . 10 Impact 10 | . . 10 Slashing . | . . . Piercing . | . . . Sneak Attacks . | . . . Combat Hostiles . | . . . Follow-up Attacks . | . . . Damage Inflicted 1432 | 98 940 394 Guns 528 | 97 202 229 Cannons 655 | . 637 18 Explosions 101 | . 101 . Melee 147 | . . 147 Ramming 1 | 1 . . Kinetic 720 | 53 649 18 Thermal 302 | 44 190 68 Explosive 101 | . 101 . Electromagnetic 161 | . . 161 Impact 147 | . . 147 Slashing . | . . . Piercing . | . . . Highest Corruption . | . . . Average Corruption . | . . . Corruption Purged . | . . . Overload Shots . | . . . Overflow Damage 8 | . 8 . Projectiles . | . . . Explosions 8 | . 8 . Melee . | . . . Knockbacks 13 | . 11 2 Impact 1 | . . 1 Kinetic 10 | . 9 1 Secondary 2 | . 2 . Self-Inflicted Damage . | . . . Shots . | . . . Rammed 1 | 1 . . Targets Rammed 1 | 1 . . Kicked . | . . . Crushed . | . . . Highest Temperature 216 | . 216 156 Average Temperature 64 | . 60 79 Received Heat Transfer 510 | . 261 249 Effects 3 | . 3 . Energy Bleed 1 | . 1 . Interference 2 | . 2 . Siege Activations . | . . . Robots Corrupted . | . . . Combat Hostiles . | . . . Parts Fried . | . . . Impact Corruptions . | . . . Robots Melted . | . . . Combat Hostiles . | . . . Parts Melted 1 | . . 1 Heat Transferred 734 | 100 449 185 Parts Sabotaged . | . . . Parts Stolen . | . . . Parts Stripped . | . . . Power Chain Reactions . | . . . Missiles Intercepted . | . . . Alert | -11 -10 -10 ------- Run | Scr Mat Min Peak Influence 245 | 15 245 60 Initial 9 | . 9 2 Average 62 | 3 71 30 Maximum Alert Level 1 | . 1 . Low Security (%) 95 | 100 94 100 Level 1 4 | . 5 . Level 2 . | . . . Level 3 . | . . . Level 4 . | . . . Level 5 . | . . . High Security . | . . . Max Security . | . . . Squads Dispatched 6 | . 6 . Investigation 2 | . 2 . Extermination . | . . . Reinforcement 4 | . 4 . Assault . | . . . Garrison . | . . . Intercept . | . . . Construction Impeded . | . . . Haulers Reinforced . | . . . Stealth | -11 -10 -10 --------- Run | Scr Mat Min Distress Signals 2 | . 2 . Communications Jammed . | . . . Distress Signals . | . . . Times Spotted 35 | . 29 6 Peak Tracking Total 5 | . 5 3 Tactical Retreats 1 | . . 1 Traps | -11 -10 -10 ------- Run | Scr Mat Min Traps Triggered 3 | . 3 . Indirectly . | . . . Trap Hack Attempts . | . . . Triggered . | . . . Disarmed . | . . . Reprogrammed . | . . . Reused . | . . . Traps Extracted . | . . . Installed . | . . . Triggered . | . . . Machines | -11 -10 -10 ---------- Run | Scr Mat Min Machines Disabled . | . . . Max in Single Turn . | . . . Machines Sabotaged . | . . . Garrisons Compromised . | . . . Overloaded Fab Kills . | . . . Fab Network Shutdowns . | . . . Hacking | -11 -10 -10 --------- Run | Scr Mat Min Machines Accessed 6 | . 6 . Terminals 5 | . 5 . Fabricators . | . . . Repair Stations . | . . . Recycling Units 1 | . 1 . Scanalyzers . | . . . Garrison Access . | . . . Total Hacks 15 | . 15 . Successful 10 | . 10 . Failed 5 | . 5 . Catastrophic 2 | . 2 . Database Lockouts . | . . . Manual 8 | . 8 . Terminals 14 | . 14 . Fabricators . | . . . Repair Stations . | . . . Recycling Units 1 | . 1 . Scanalyzers . | . . . Garrison Access . | . . . Terminal Hacks 8 | . 8 . Robot Analysis 2 | . 2 . Prototype ID Bank 1 | . 1 . Branch Access Points 1 | . 1 . Unreport Threat 1 | . 1 . Hauler Manifests 1 | . 1 . Registered Components 1 | . 1 . Zone Layout 1 | . 1 . Fabricator Hacks . | . . . Repair Station Hacks . | . . . Recycling Unit Hacks . | . . . Scanalyzer . | . . . Garrison Access Hacks . | . . . Unauthorized Hacks 2 | . 2 . Terminals 1 | . 1 . Track 1 | . 1 . Fabricators . | . . . Repair Stations . | . . . Recycling Units 1 | . 1 . Tunnel 1 | . 1 . Scanalyzers . | . . . Garrison Access . | . . . Data Cores Recovered . | . . . Used . | . . . Hacking Detections 5 | . 5 . Full Trace Events . | . . . Feedback Events . | . . . Feedback Blocked . | . . . Robot Schematics Acquired . | . . . Robots Built . | . . . Matter . | . . . Time . | . . . Total Robot Build Rating . | . . . Part Schematics Acquired . | . . . Parts Built . | . . . Matter . | . . . Time . | . . . Total Part Build Rating . | . . . Parts Repaired . | . . . Time . | . . . Parts Recycled . | . . . Recycled Matter . | . . . Retrieved Matter . | . . . Retrieved Components . | . . . Parts Scanalyzed . | . . . Part Schematics Acquired . | . . . Parts Damaged . | . . . Bothacking | -11 -10 -10 ------------ Run | Scr Mat Min Used RIF Installer . | . . . Robots Hacked . | . . . Non-combat . | . . . Combat . | . . . Robot Hacks Applied . | . . . Relay Couplers Released . | . . . Robots Rewired . | . . . Allies Hacked . | . . . Hacks Repelled . | . . . Allies | -11 -10 -10 -------- Run | Scr Mat Min Total Allies . | . . . Largest Group . | . . . Highest-Rated Group . | . . . Highest-Rated Ally . | . . . Total Orders . | . . . Ally Attacks . | . . . Total Damage . | . . . Kills . | . . . Allies Corrupted . | . . . Allies Melted . | . . . Intel | -11 -10 -10 ------- Run | Scr Mat Min Robot Analysis Total 2 | . 2 . Derelict Logs Recovered . | . . . Drone Launches . | . . . Drone Recoveries . | . . . Exploration | -11 -10 -10 ------------- Run | Scr Mat Min Turns Passed 1590 | 117 1326 147 Spaces Moved 852 | 72 751 29 Core 3 | 3 . . Treads 9 | . . 9 Legs 796 | 25 751 20 Wheels 44 | 44 . . Hover . | . . . Flight . | . . . Fastest Speed 50 | 50 120 150 Average Speed 138 | 96 140 194 Slowest Speed 210 | 150 210 210 Overloaded Moves . | . . . Propulsion Burnouts . | . . . Robots Hopped . | . . . Cave-ins Triggered . | . . . Exploration Rate (%) 36 | 5 97 7 Regions Visited 2 Branch Regions 1 Pre-discovered Areas 1 | . 1 . Known Exits Taken 1 | . 1 . Unknown Exits Taken 1 | 1 . . Scrap Searched . | . . . Spaces Dug 2 | . 2 . Terrain Destroyed 13 | . 13 . Melee . | . . . Projectile 2 | . 2 . AOE 11 | . 11 . Terrain Rammed . | . . . Walls Destroyed . | . . . Machines Disabled . | . . . Actions | -11 -10 -10 --------- Run | Scr Mat Min Total 1097 | 102 918 77 Wait 68 | 6 53 9 Move 850 | 71 750 29 Hop . | . . . Pick Up 22 | 5 16 1 Fast Attach 16 | 8 8 . Attach 4 | 1 . 3 Detach 3 | 2 1 . Swap 19 | . 19 . Drop 19 | 1 17 1 Fire 85 | 7 54 24 Melee 10 | . . 10 Ram . | . . . Kick . | . . . Crush 1 | 1 . . Escape Stasis . | . . . Rewire . | . . . Trap . | . . . Miscellaneous . | . . . Route ------- -11/Scrapyard -10/Materials (discovered 5 exits: [*Mat x3] / *Min x2) -10/Mines History --------- Turn | Location | Event 12 | -11/Scrapyard | Discovered new exit (range 14) 118 | -11/Scrapyard | Entered Materials 284 | -10/Materials | Discovered new exit (range 9) 309 | -10/Materials | Build established: Mutant 321 | -10/Materials | Discovered new exit (range 9) 355 | -10/Materials | Discovered new exit (range 15) 482 | -10/Materials | Discovered new exit (range 15) 503 | -10/Materials | Discovered new exit (range 12) 867 | -10/Materials | Identified exit to Mines 1444 | -10/Materials | Entered Mines 1500 | -10/Mines | Lost 3 parts (1n2w) 1543 | -10/Mines | Core integrity fell below 50% 1559 | -10/Mines | Core integrity fell below 20% 1591 | -10/Mines | Destroyed by G-47 Trooper with Particle Gun Last Messages --------------- 01469_ Med. Laser destroyed. 01469_ K-01 Serf collects debris. 01472_ S-10 Pest destroyed. 01474_ K-01 Serf collects debris. 01474_ Acquired Lgt. Nuclear Core. 01475_ Acquired 7 matter. 01477_ K-01 Serf collects debris. 01485_ Acquired 4 matter. 01493_ R-06 Scavenger collects Lgt. Ion Engine. 01535_ G-47 Trooper misfires. 01536_ Lgt. Ion Engine destroyed. 01538_ EM Pulse Gun destroyed. 01555_ G-47 Trooper IFF system glitched. 01555_ R-06 Scavenger destroyed. 01559_ Acquired 20 matter. 01559_ R-06 Scavenger collects Tractor Beam. 01564_ R-06 Scavenger collects Lgt. Ion Engine. 01571_ G-34 Mercenary knocked back. 01573_ Aluminum Leg destroyed. 01582_ G-34 Mercenary destroyed. Map ----- +----------------------------------------------------+ | ?????????????????????????????????? | | ?????????????????????????????????? | | ?????????????????????????????????? | | ?????????????????????????????????? | | ?????????????????????????????????? | | ?????????????????????????????????? | | ?????????????????????????????????? | | ?????????????????????????????????? | | ?????????????????????????????????? | | ?????????????????????????????????? | | ?????????????????????????????????? | | ?????????????????????????????????? | | ?????????????????????????????????? | | ?????????????????????????????????? | | ?????????????????????????????????? | | ?????????????????????????????????? | | ?????????????????????????????????? | | ?????????????????????????????????? | | ?????????????????????????????????? | | ?????????????????????????????????? | | ???????????????????????###???????? | | ?????????????????#######T##??????? | | ?????????????????# ####???? | | ?????????????????# """ % = #???? | | ?????????????????# """ [g #???? | | ?????????????????# """ @# #???? | | ?????????????????# % #%*#???? | | ?????????????????# #= #???? | | ?????????????????########## #???? | | ??????????????????????? ?? | | ??????????????????????# #? | | ??????????????????????# #? | | ??????????????????????# #? | | ????????????????????? """ """ #? | | ????????????????????### """ """ #? | | ??????????????????????# """ """ #? | | ??????????????????????# #? | | ??????????????????????#??"" ""? #? | | ??????????????????????????" "????? | | ??????????????????????????" "????? | | ?????????????????????????? ?????? | | ??????????????????????????##?????? | | ?????????????????????????????????? | | ?????????????????????????????????? | | ?????????????????????????????????? | | ?????????????????????????????????? | | ?????????????????????????????????? | | | | | | | +----------------------------------------------------+ Best States ------------- Heat Dissipation 25 Energy Generation 10 Energy Capacity 250 Matter Stores 300 Matter Capacity 300 Sight Range 16 Terrain Scan Density 10 Evasion (%) 44 Recoil Reduction 1 Item Schematics ----------------- None Robot Schematics ------------------ None Fabricated ------------ Nothing Alien Tech Used ----------------- None Achievements -------------- None Challenges ------------ None Game ------ Seed WarpFlightReactor Manual? 0 Play Time 00:14:47 Cumulative 152.7 hours Start 2020.11.13 @ 11:23:22 End 2020.11.13 @ 11:36:47 Sessions 1 Manual Loads 0 Difficulty Rogue Special Mode Halloween2020/ForbiddenLore Game No. 51 Rogue 36 Adventurer 15 Explorer 0 Win Type - Total 4 Types 1/0/1/1/1/0/0/0/0 Lore% 77 Gallery% 77 Achievement% 65 Wizard Run 0 Options --------- ASCII 0 Keyboard 0 Movement Numpad Keybinds 0 Fullscreen 1 Font 18/SmallcapsGlow Map View 76x50 Tactical HUD 1 Map Filters NONE Filters NONE Steam 1 RUN: dd9ffdd5-aaa4-4eff-bc8e-dd6b3f7f9ae7